Cogmind - Beta 13 @@@ ROGUE MODE // 2024.07.09 @ 00:53:21 Player: H3-RMN Result: Destroyed by G-47 Trooper with Particle Gun Performance ------------- Evolutions (2) 1000 Regions Visited (10) 2000 Robots Destroyed (171) 855 Value Destroyed (4539) 4539 Prototype IDs (58) 1160 Alien Tech Used (0) 0 Bonus (2603) 2603 TOTAL SCORE: 12157 Bonus ------- High Alert Combat Kills 571 Follower Combat Kills 395 Entered Garrisons 400 Used RIF Installer 1500 Friendly Fire -263 Cogmind --------- Core Integrity 0/550 Matter 300/300 Energy 148/150 System Corruption 5% Temperature Cool (15) Movement Hovering (69) Location -8/Garrison Parts ------- > --- POWER (1) -------- Micro Nuclear Core > --- PROPULSION (4) --- Combat Airjet Gyrokinetic Inverter Combat Gravmag System Flight Unit > --- UTILITY (4) ------ Large Storage Unit Improved Signal Interpreter Core Analyzer Hacking Suite > --- WEAPON (2) ------- Makeshift Spear > --- INVENTORY (15) --- Light Nuclear Core Improved VTOL Module Improved VTOL Module Superbattery (1500) Improved Sensor Array Transport Network Coupler Hacking Suite Relay Coupler [NC] (29) YOLO Cannon Improved Datajack Blade Trap Blade Trap Blade Trap Blade Trap Peak State ------------ > --- POWER ------------ Micro Nuclear Core > --- PROPULSION ------- Combat Airjet Combat Airjet Gyrokinetic Inverter Combat Gravmag System > --- UTILITY ---------- Large Storage Unit Improved Signal Interpreter Cloak of Protection Hacking Suite > --- WEAPON ----------- Enhanced Autogun Enhanced Autogun > --- INVENTORY -------- Improved VTOL Module Improved VTOL Module Superbattery Improved Sensor Array Transport Network Coupler Hacking Suite Relay Coupler [NC] YOLO Cannon Improved Datajack Makeshift Spear Blade Trap Blade Trap Blade Trap Blade Trap [Rating: 54] Favorites ----------- Power Heavy Ion Engine Engine Heavy Ion Engine Power Core Nuclear Core Propulsion Light Treads Treads Light Treads Wheel Armored Wheel Hover Unit Combat Airjet Flight Unit Flight Unit Utility Hardlight Generator Device Hardlight Generator Storage Huge Storage Unit Processor Machine Analyzer Hackware Hacking Suite Protection Hardened Medium Armor Plating Weapon Enhanced Autogun Energy Gun Improved EM Shotgun Energy Cannon Heavy Plasma Cannon Ballistic Gun Enhanced Autogun Ballistic Cannon Enhanced Gauss Cannon Launcher Rocket Launcher Special Weapon Remote Datajack Piercing Weapon Makeshift Spear Special Melee Weapon Datajack Build | -11 -10 -10 -9 -9 -9 -8 -8 -8 -8 -8 ------- Run | Yrd Mat Min Mat Min Exi Min Mat Gar Mat Gar Slots Evolved 4 | . . . 2 . . . 2 . . . Power . | . . . . . . . . . . . Propulsion 2 | . . . 1 . . . 1 . . . Utility 2 | . . . 1 . . . 1 . . . Weapon . | . . . . . . . . . . . Parts Attached 135 | 7 7 6 26 3 1 5 18 48 5 9 Power 11 | 1 1 1 1 . . . 2 3 1 1 Engine 6 | 1 1 1 1 . . . 1 1 . . Core 5 | . . . . . . . 1 2 1 1 Reactor . | . . . . . . . . . . . Propulsion 29 | 2 1 1 5 1 . 1 6 9 2 1 Treads 16 | 1 . 1 3 . . 1 6 4 . . Leg . | . . . . . . . . . . . Wheel 5 | 1 1 . 2 1 . . . . . . Hover 7 | . . . . . . . . 5 2 . Flight 1 | . . . . . . . . . . 1 Utility 27 | 2 3 . 3 . . . 6 9 1 3 Device 8 | 1 1 . 1 . . . 1 2 1 1 Storage 6 | 1 2 . 1 . . . 1 1 . . Processor 4 | . . . 1 . . . 1 1 . 1 Hackware 2 | . . . . . . . . 1 . 1 Protection 7 | . . . . . . . 3 4 . . Artifact . | . . . . . . . . . . . Weapon 68 | 2 2 4 17 2 1 4 4 27 1 4 Energy Gun 4 | . . . 3 . . . 1 . . . Energy Cannon 2 | . . . . . . . . 2 . . Ballistic Gun 34 | 2 2 2 9 1 . 3 3 10 1 1 Ballistic Cannon 1 | . . . . . . . . 1 . . Launcher 12 | . . 2 5 1 . 1 . 3 . . Special Weapon 4 | . . . . . . . . 3 . 1 Impact Weapon . | . . . . . . . . . . . Slashing Weapon . | . . . . . . . . . . . Piercing Weapon 10 | . . . . . . . . 8 . 2 Special Melee Weapon 1 | . . . . . 1 . . . . . Unidentified Prototypes 6 | . . . 4 . . . 1 . 1 . Parts Lost 19 | . . . . 1 . 1 . 10 1 6 Power 2 | . . . . . . . . 1 . 1 Propulsion 8 | . . . . 1 . 1 . 4 1 1 Utility 4 | . . . . . . . . 3 . 1 Weapon 5 | . . . . . . . . 2 . 3 Highest Loss Streak 8 | . . . . 1 . 1 . 8 1 2 To Critical Strikes . | . . . . . . . . . . . Average Slot Usage (%) 99 | . 100 100 99 99 100 100 99 98 98 95 Engine 7 | . 14 14 11 11 11 11 2 6 . . Core 2 | . . . . . . . 6 1 9 8 Treads 23 | . 14 14 22 22 22 22 33 33 . . Wheel 6 | . 14 14 11 10 11 11 2 . . . Hover 3 | . . . . . . . . 1 34 35 Device 10 | . 14 14 11 11 11 11 9 8 9 6 Storage 10 | . 14 14 11 11 11 11 9 9 9 9 Processor 8 | . . . 11 11 11 11 9 9 9 10 Protection 3 | . . . . . . . 8 8 . . Ballistic Gun 18 | . 28 28 19 22 12 22 17 11 16 6 Piercing Weapon 1 | . . . . . . . . 4 1 5 Naked Turns . | . . . . . . . . . . . Heaviest Build 124 | 14 31 33 99 99 99 99 109 124 40 40 Greatest Support 97 | 16 16 20 12 12 12 12 91 97 49 49 Greatest Overweight (x) 8 | . 3 3 8 8 8 8 8 2 . . Average Overweight (x) 3 | . 1 2 3 8 8 8 2 . . . Largest Inventory Capacity 25 | 8 15 15 25 25 25 25 25 25 15 15 Average Capacity 21 | 7 14 15 17 25 25 25 25 24 15 15 Most Carried 25 | 8 15 15 21 25 25 25 25 25 15 15 Average Carried 21 | 4 13 14 15 23 24 24 24 24 14 14 Final Capacity 25 | 8 15 15 25 25 25 25 25 15 15 15 Final Carried 25 | 8 15 15 21 25 25 25 25 15 15 15 Class Distribution -------------------- 89% | Mutant 10% | Scavenger-Mutant Dominant Class ---------------- Mutant | -10/Materials Mutant | -10/Mines Mutant | -9/Materials Mutant | -9/Mines Mutant | -9/Exiles Mutant | -8/Mines Mutant | -8/Materials Mutant | -8/Garrison Scavenger-Mutant | -8/Materials Mutant | -8/Garrison Resources | -11 -10 -10 -9 -9 -9 -8 -8 -8 -8 -8 ----------- Run | Yrd Mat Min Mat Min Exi Min Mat Gar Mat Gar Matter Collected 4569 | 302 266 171 836 196 10 214 676 1108 431 359 Remotely . | . . . . . . . . . . . Salvage Created 6144 | 124 606 138 1228 230 . 253 1045 1368 431 721 Parts 375 | 10 36 14 85 20 . 14 59 72 27 38 Haulers Intercepted 13 | . 2 . 6 . . . 3 . 2 . Recyclers Shooed 2 | . 1 . . . . . . . 1 . Parts Field Recycled . | . . . . . . . . . . . Retrieved Matter . | . . . . . . . . . . . Parts Self-Destructed . | . . . . . . . . . . . Prevented . | . . . . . . . . . . . Kills | -11 -10 -10 -9 -9 -9 -8 -8 -8 -8 -8 ------- Run | Yrd Mat Min Mat Min Exi Min Mat Gar Mat Gar Combat Hostiles Destroyed 128 | . 14 6 27 11 . 8 11 29 5 17 Melee 12 | . . . . . . . . . 1 11 Guns 76 | . 14 . 13 5 . 4 11 19 4 6 Cannons 3 | . . . . . . . . 3 . . AOE 37 | . . 6 14 6 . 4 . 7 . . Classes Destroyed 19 | 2 6 . 5 1 . 1 2 2 . . Worker 3 | . . . 1 1 . . 1 . . . Builder 1 | . . . . . . . 1 . . . Tunneler 6 | 3 . . 1 . . 2 . . . . Hauler 13 | . 2 . 6 . . . 3 . 2 . Recycler 6 | 1 . 1 . . . 2 2 . . . Mechanic 1 | . 1 . . . . . . . . . Operator 4 | . 1 . . . . . 3 . . . Watcher 7 | . 1 . 3 . . . . 1 2 . Swarmer 48 | . 6 6 10 7 . 7 . 6 . 6 Grunt 45 | . 8 . 10 3 . . 5 11 3 5 Brawler 2 | . . . 1 . . . . 1 . . Duelist 2 | . . . 1 . . . . 1 . . Protector 1 | . . . 1 . . . . . . . Sentry 21 | . . . 6 . . . 3 6 2 4 Demolisher 2 | . . . . 1 . . . . . 1 Specialist 2 | . . . . . . . 2 . . . Hunter 2 | . . . . . . 1 1 . . . Programmer 4 | . . . . . . . . 3 . 1 Behemoth 1 | . . . . . . . . 1 . . Best Kill Streak 6 | 2 5 4 5 3 . 4 5 3 4 6 Combat Bots Only 6 | . 5 3 5 3 . 4 4 3 3 6 Max Kills in Single Turn 3 | 1 1 3 3 3 . 2 1 2 1 1 Gunslinging . | . . . . . . . . . . . Exploded 3 | . . 3 3 3 . 2 . 2 . . Melee 1 | . . . . . . . . . 1 1 Uniques/NPCs Destroyed . | . . . . . . . . . . . Combat | -11 -10 -10 -9 -9 -9 -8 -8 -8 -8 -8 -------- Run | Yrd Mat Min Mat Min Exi Min Mat Gar Mat Gar Hostile Shots Fired 536 | . 39 6 57 30 . 22 53 185 31 113 Missed 162 | . 10 5 20 6 . 5 16 53 9 38 Damage Taken 5214 | . 312 47 307 438 . 132 454 2075 332 1117 Core 733 | . 52 5 37 55 . 23 24 220 92 225 Absorbed by Shields 749 | . . 18 139 68 . 68 152 304 . . Regen/Repaired (Parts) 314 | . . . . . . . 259 . 55 . Core Remaining (%) 82 | 100 . 77 . . . 71 . . . . Volleys Fired 429 | 8 65 4 74 21 . 20 62 113 26 36 Largest 2 | 2 2 2 2 2 . 2 2 2 2 2 Hottest 100 | 40 40 40 68 50 . 53 50 100 50 50 Shots Fired 800 | 16 130 5 139 41 . 38 124 206 49 52 Gun 761 | 16 130 2 130 40 . 36 124 186 49 48 Cannon 8 | . . . . . . . . 8 . . Launcher 27 | . . 3 9 1 . 2 . 12 . . Special 4 | . . . . . . . . . . 4 Kinetic 756 | 16 130 2 125 40 . 36 124 186 49 48 Thermal 8 | . . . . . . . . 8 . . Explosive 27 | . . 3 9 1 . 2 . 12 . . Electromagnetic 5 | . . . 5 . . . . . . . Robot Hit Streak 27 | 7 12 1 11 5 . 7 11 27 11 22 Robot Miss Streak 6 | 2 4 1 4 3 . 4 3 2 6 1 Penetration Max 1 | . . . . . . 1 . . . . Secondary Targets 11 | . . . 1 2 . . 3 5 . . Max Gunslinging Chain 1 | . . . 1 1 . . 1 1 . . Shots Hit Robots 572 | 9 74 1 82 21 4 23 88 162 40 68 Core Hits 269 | 5 32 8 53 13 . 16 38 62 14 28 Critical Kills 1 | . . . . . . . . 1 . . Critical Parts Destroyed 1 | . . . 1 . . . . . . . Critical Strikes 8 | . . . 1 . . . . 3 2 2 Destroy 3 | . . . 1 . . . . 2 . . Impale 5 | . . . . . . . . 1 2 2 Melee Attacks 97 | . . . . . 4 . . 35 15 43 Impact . | . . . . . . . . . . . Slashing . | . . . . . . . . . . . Piercing 93 | . . . . . . . . 35 15 43 Sneak Attacks 6 | . . . . . 4 . . . 1 1 Combat Hostiles 1 | . . . . . . . . . . 1 Follow-up Attacks . | . . . . . . . . . . . Damage Inflicted 12742 | 96 830 302 2275 743 . 618 1553 4115 806 1404 Guns 8367 | 96 830 15 1355 379 . 447 1553 2361 563 768 Cannons 331 | . . . . . . . . 331 . . Explosions 2737 | . . 287 920 364 . 171 . 995 . . Melee 1307 | . . . . . . . . 428 243 636 Ramming . | . . . . . . . . . . . Kinetic 8300 | 96 830 15 1288 379 . 447 1553 2361 563 768 Thermal 526 | . . . . 195 . . . 331 . . Explosive 2542 | . . 287 920 169 . 171 . 995 . . Electromagnetic 67 | . . . 67 . . . . . . . Impact . | . . . . . . . . . . . Slashing . | . . . . . . . . . . . Piercing 1307 | . . . . . . . . 428 243 636 Highest Corruption 5 | . . . . . . . . 3 3 5 Average Corruption 3 | . . . . . . . . 2 3 3 Corruption Purged . | . . . . . . . . . . . Corruption Blocked . | . . . . . . . . . . . Effects 34 | . . . . . . . . 14 2 18 Message Errors 5 | . . . . . . . . 2 1 2 Matter Fused 6 | . . . . . . . . 2 . 4 Heat Flow Errors 6 | . . . . . . . . 4 . 2 Energy Discharges 6 | . . . . . . . . 3 . 3 Data Loss (minor) 6 | . . . . . . . . 3 . 3 Data Loss (major) 1 | . . . . . . . . . 1 . Misfires 1 | . . . . . . . . . . 1 Alerts 2 | . . . . . . . . . . 2 Weapon Failures 1 | . . . . . . . . . . 1 Overload Shots . | . . . . . . . . . . . Overflow Damage 205 | . . . 43 52 . . . 34 27 49 Projectiles . | . . . . . . . . . . . Explosions 129 | . . . 43 52 . . . 34 . . Melee 76 | . . . . . . . . . 27 49 Knockbacks . | . . . . . . . . . . . Impact . | . . . . . . . . . . . Kinetic . | . . . . . . . . . . . Secondary . | . . . . . . . . . . . Self-Inflicted Damage 138 | . . 55 . 1 . 30 . 52 . . Shots 6 | . . 2 . 1 . 1 . 2 . . Rammed . | . . . . . . . . . . . Targets Rammed . | . . . . . . . . . . . Kicked . | . . . . . . . . . . . Crushed . | . . . . . . . . . . . Highest Temperature 300 | . 12 . 30 75 . 18 300 217 250 178 Average Temperature 48 | . 6 . 8 21 . 7 63 46 106 51 Received Heat Transfer 1514 | . 123 . 80 55 . . 143 471 153 489 Effects 3 | . . . . . . . . . 3 . Interference 3 | . . . . . . . . . 3 . Siege Activations . | . . . . . . . . . . . Robots Corrupted . | . . . . . . . . . . . Combat Hostiles . | . . . . . . . . . . . Parts Fried . | . . . . . . . . . . . Impact Corruptions . | . . . . . . . . . . . Robots Melted . | . . . . . . . . . . . Combat Hostiles . | . . . . . . . . . . . Parts Melted 1 | . . . . . . . . 1 . . Heat Transferred 630 | . . . . 250 . . . 380 . . Parts Sabotaged . | . . . . . . . . . . . Parts Stolen . | . . . . . . . . . . . Parts Stripped . | . . . . . . . . . . . Power Chain Reactions . | . . . . . . . . . . . Alert | -11 -10 -10 -9 -9 -9 -8 -8 -8 -8 -8 ------- Run | Yrd Mat Min Mat Min Exi Min Mat Gar Mat Gar Peak Influence 1189 | 20 342 288 760 497 . 206 210 1189 707 541 Initial 579 | . 13 97 33 296 . . . 112 579 70 Average 275 | 9 166 178 413 243 . 46 79 576 581 294 Maximum Alert Level 4 | . 1 1 3 2 . 1 1 4 3 2 Low Security (%) 49 | 100 59 64 21 30 . 98 88 12 2 34 Level 1 28 | . 40 35 33 62 . 1 11 24 17 42 Level 2 12 | . . . 27 7 . . . 21 65 23 Level 3 10 | . . . 17 . . . . 39 14 . Level 4 . | . . . . . . . . . . . Level 5 . | . . . . . . . . . . . High Security . | . . . . . . . . . . . Max Security . | . . . . . . . . . . . Squads Dispatched 13 | . 4 . 2 . . . 7 . . . Investigation 7 | . 3 . 1 . . . 3 . . . Extermination . | . . . . . . . . . . . Reinforcement 3 | . 1 . . . . . 2 . . . Assault 1 | . . . 1 . . . . . . . Garrison 2 | . . . . . . . 2 . . . Intercept . | . . . . . . . . . . . Searches Triggered . | . . . . . . . . . . . Construction Impeded . | . . . . . . . . . . . Haulers Reinforced . | . . . . . . . . . . . Active Scanning Responses . | . . . . . . . . . . . Cargo Convoy Interrupts . | . . . . . . . . . . . Stealth | -11 -10 -10 -9 -9 -9 -8 -8 -8 -8 -8 --------- Run | Yrd Mat Min Mat Min Exi Min Mat Gar Mat Gar Distress Signals 5 | . . . 2 . . . 1 . 2 . Communications Jammed . | . . . . . . . . . . . Distress Signals . | . . . . . . . . . . . Times Spotted 173 | . 22 6 42 10 . 8 19 30 7 29 Peak Tracking Total 7 | . 6 3 5 4 . 4 5 3 4 7 Tactical Retreats 3 | . 1 . . 1 . . . . . 1 Traps | -11 -10 -10 -9 -9 -9 -8 -8 -8 -8 -8 ------- Run | Yrd Mat Min Mat Min Exi Min Mat Gar Mat Gar Traps Triggered 7 | . 1 . . . . . . 1 1 4 Indirectly . | . . . . . . . . . . . Trap Hack Attempts . | . . . . . . . . . . . Triggered . | . . . . . . . . . . . Disarmed . | . . . . . . . . . . . Reprogrammed 1 | . . . 1 . . . . . . . Reused . | . . . . . . . . . . . Traps Extracted . | . . . . . . . . . . . Installed . | . . . . . . . . . . . Triggered . | . . . . . . . . . . . Most Traps Carried 4 | . . 4 4 4 4 4 4 4 4 4 Machines | -11 -10 -10 -9 -9 -9 -8 -8 -8 -8 -8 ---------- Run | Yrd Mat Min Mat Min Exi Min Mat Gar Mat Gar Machines Disabled 11 | . . 1 3 4 . 1 . 1 1 . Max in Single Turn 4 | . . 1 2 4 . 1 . 1 1 . Garrison Relay 3 | . . . . . . . . 3 . . Machines Repaired . | . . . . . . . . . . . Machines Dismantled 3 | . . . . . . . . 3 . . Machines Sabotaged . | . . . . . . . . . . . Overloaded Fab Kills . | . . . . . . . . . . . Hacking | -11 -10 -10 -9 -9 -9 -8 -8 -8 -8 -8 --------- Run | Yrd Mat Min Mat Min Exi Min Mat Gar Mat Gar Machines Accessed 51 | . 7 . 16 . 2 . 15 1 8 2 Terminals 34 | . 4 . 12 . . . 9 1 6 2 Fabricators . | . . . . . . . . . . . Repair Stations 4 | . 1 . . . . . 2 . 1 . Recycling Units 5 | . 2 . 2 . . . 1 . . . Scanalyzers 4 | . . . 2 . . . 2 . . . Garrison Access 2 | . . . . . . . 1 . 1 . Total Hacks 151 | . 20 . 48 . 5 . 55 1 17 5 Successful 92 | . 12 . 23 . 5 . 40 . 9 3 Failed 58 | . 7 . 25 . . . 15 1 8 2 Catastrophic 8 | . . . 3 . . . 3 1 1 . Database Lockouts 1 | . 1 . . . . . . . . . Manual 57 | . 14 . 20 . 2 . 13 . 7 1 Terminals 100 | . 15 . 39 . . . 26 1 14 5 Fabricators . | . . . . . . . . . . . Repair Stations 12 | . 1 . . . . . 9 . 2 . Recycling Units 10 | . 4 . 4 . . . 2 . . . Scanalyzers 20 | . . . 5 . . . 15 . . . Garrison Access 4 | . . . . . . . 3 . 1 . Terminal Hacks 44 | . 4 . 16 . 5 . 11 . 6 2 Record 4 | . . . . . 4 . . . . . Robot Schematic 2 | . . . 2 . . . . . . . Robot Analysis 8 | . 2 . 3 . . . 2 . 1 . Prototype ID Bank 9 | . . . 4 . . . 4 . 1 . Emergency Access Points 1 | . . . . . . . . . . 1 Terminal Index 4 | . 1 . 1 . . . 1 . 1 . Alert Level 1 | . . . . . . . 1 . . . Unreport Threat 3 | . . . . . . . . . 3 . Locate Traps 5 | . 1 . 3 . . . 1 . . . Reprogram Traps 2 | . . . 2 . . . . . . . Hauler Manifests 2 | . . . 1 . . . 1 . . . Zone Layout 1 | . . . . . . . 1 . . . Patrol Navigation 1 | . . . . . . . . . . 1 Derelict Proto ID Bank 1 | . . . . . 1 . . . . . Fabricator Hacks . | . . . . . . . . . . . Repair Station Hacks 10 | . 1 . . . . . 7 . 2 . Scan Component 5 | . . . . . . . 4 . 1 . Repair 4 | . . . . . . . 3 . 1 . Refit 1 | . 1 . . . . . . . . . Recycling Unit Hacks 5 | . 2 . 2 . . . 1 . . . Report Inventory 5 | . 2 . 2 . . . 1 . . . Scanalyzer 17 | . . . 3 . . . 14 . . . Insert Component 8 | . . . 2 . . . 6 . . . Analyze 9 | . . . 1 . . . 8 . . . Garrison Access Hacks 2 | . . . . . . . 1 . 1 . Unlock Access 2 | . . . . . . . 1 . 1 . Unauthorized Hacks 14 | . 5 . 2 . . . 6 . . 1 Terminals 10 | . 3 . 2 . . . 4 . . 1 Track 2 | . . . 1 . . . 1 . . . Botnet 6 | . 2 . 1 . . . 2 . . 1 Operators 2 | . 1 . . . . . 1 . . . Fabricators . | . . . . . . . . . . . Repair Stations . | . . . . . . . . . . . Recycling Units 3 | . 2 . . . . . 1 . . . Mask 1 | . . . . . . . 1 . . . Tunnel 2 | . 2 . . . . . . . . . Scanalyzers . | . . . . . . . . . . . Garrison Access 1 | . . . . . . . 1 . . . Reprogram 1 | . . . . . . . 1 . . . Data Cores Recovered 2 | . . . . . . . 2 . . . Used . | . . . . . . . . . . . Hacking Detections 45 | . 4 . 16 . . . 15 1 7 2 Full Trace Events 2 | . . . 1 . . . . . . 1 Feedback Events . | . . . . . . . . . . . Feedback Blocked . | . . . . . . . . . . . Robot Schematics Acquired 2 | . . . 2 . . . . . . . Robots Built . | . . . . . . . . . . . Authchips . | . . . . . . . . . . . Time . | . . . . . . . . . . . Total Robot Build Rating . | . . . . . . . . . . . Part Schematics Acquired 6 | . . . 1 . . . 5 . . . Parts Built . | . . . . . . . . . . . Authchips . | . . . . . . . . . . . Time . | . . . . . . . . . . . Total Part Build Rating . | . . . . . . . . . . . Parts Repaired 4 | . . . . . . . 3 . 1 . Time 208 | . . . . . . . 158 . 50 . Parts Recycled . | . . . . . . . . . . . Recycled Matter . | . . . . . . . . . . . Retrieved Matter . | . . . . . . . . . . . Retrieved Components . | . . . . . . . . . . . Parts Scanalyzed 6 | . . . 2 . . . 4 . . . Part Schematics Acquired 6 | . . . 1 . . . 5 . . . Parts Damaged . | . . . . . . . . . . . Bothacking | -11 -10 -10 -9 -9 -9 -8 -8 -8 -8 -8 ------------ Run | Yrd Mat Min Mat Min Exi Min Mat Gar Mat Gar Used RIF Installer 3 | . . . . . . . . 2 . 1 Signal Jammer 1 | . . . . . . . . 1 . . Program Shield 1 | . . . . . . . . . . 1 Robots Hacked 7 | . . . . . 4 . . . . 3 Non-combat 3 | . . . . . 3 . . . . . Combat 4 | . . . . . 1 . . . . 3 Robot Hacks Applied 7 | . . . . . 4 . . . . 3 parse_system 4 | . . . . . 4 . . . . . disable_weapons 1 | . . . . . . . . . . 1 reboot_system 1 | . . . . . . . . . . 1 formatsys_high 1 | . . . . . . . . . . 1 Relay Couplers Released 14 | . . . . . . . . 11 . 3 Machine Destruction 11 | . . . . . . . . 11 . . Programmers 3 | . . . . . . . . . . 3 Attached 1 | . . . . . . . . . . 1 Fabnet Peak Effective % . | . . . . . . . . . . . Robots Rewired . | . . . . . . . . . . . Allies Hacked . | . . . . . . . . . . . Hacks Repelled . | . . . . . . . . . . . Allies | -11 -10 -10 -9 -9 -9 -8 -8 -8 -8 -8 -------- Run | Yrd Mat Min Mat Min Exi Min Mat Gar Mat Gar Total Allies 7 | . . 3 . . . . 3 . . 1 Largest Group 3 | . . 3 3 . . . 3 . . 1 Highest-Rated Group 48 | . . 40 40 . . . 48 . . 16 Highest-Rated Ally 16 | . . 16 16 . . . 16 . . 16 Total Orders . | . . . . . . . . . . . Ally Attacks 74 | . . . 41 . . . 25 . . 8 Total Damage 906 | . . . 451 . . . 334 . . 121 Kills 15 | . . . 7 . . . 6 . . 2 Allies Corrupted . | . . . . . . . . . . . Allies Melted . | . . . . . . . . . . . Intel | -11 -10 -10 -9 -9 -9 -8 -8 -8 -8 -8 ------- Run | Yrd Mat Min Mat Min Exi Min Mat Gar Mat Gar Robot Analysis Total 8 | . 2 . 3 . . . 2 . 1 . Derelict Logs Recovered 2 | . . 1 . 1 . . . . . . Drone Launches . | . . . . . . . . . . . Drone Recoveries . | . . . . . . . . . . . Exploration | -11 -10 -10 -9 -9 -9 -8 -8 -8 -8 -8 ------------- Run | Yrd Mat Min Mat Min Exi Min Mat Gar Mat Gar Turns Passed 13424 | 112 889 706 1940 1716 656 1270 2817 2272 412 634 Spaces Moved 6645 | 70 540 401 1144 773 307 528 1073 856 385 568 Core 1 | 1 . . . . . . . . . . Treads 1638 | . . 133 . . . . 789 716 . . Legs . | . . . . . . . . . . . Wheels 3913 | 69 540 268 1144 773 307 528 284 . . . Hover 1093 | . . . . . . . . 140 385 568 Flight . | . . . . . . . . . . . Fastest Speed 50 | 50 100 125 125 210 210 210 210 65 67 67 Average Speed 169 | 99 115 163 142 210 210 210 229 210 67 67 Slowest Speed 330 | 100 125 240 210 210 210 210 236 330 74 69 Overloaded Moves . | . . . . . . . . . . . Propulsion Burnouts . | . . . . . . . . . . . Robots Hopped . | . . . . . . . . . . . Cave-ins Triggered . | . . . . . . . . . . . Exploration Rate (%) 73 | 6 93 87 95 98 70 99 88 76 30 64 Regions Visited 10 Branch Regions 4 Pre-discovered Areas 4 | . 2 . . 1 1 . . . . . Known Exits Taken 2 | . . . . . . . 1 . 1 . Unknown Exits Taken 7 | 1 1 1 1 1 1 1 . . . . Scrap Searched 6 | . . 2 . 3 . 1 . . . . Spaces Dug 86 | . . 22 24 13 . 18 . 8 . 1 Terrain Destroyed 230 | . . 34 70 40 . 18 . 67 . 1 Melee 1 | . . . . . . . . . . 1 Projectile . | . . . . . . . . . . . AOE 229 | . . 34 70 40 . 18 . 67 . . Terrain Rammed . | . . . . . . . . . . . Walls Destroyed . | . . . . . . . . . . . Machines Disabled . | . . . . . . . . . . . Actions | -11 -10 -10 -9 -9 -9 -8 -8 -8 -8 -8 --------- Run | Yrd Mat Min Mat Min Exi Min Mat Gar Mat Gar Total 8151 | 94 695 450 1362 841 318 662 1367 1129 492 741 Wait 640 | 2 58 27 84 38 . 109 186 31 54 51 Move 6636 | 69 539 400 1143 772 306 527 1072 855 385 568 Hop . | . . . . . . . . . . . Pick Up 80 | 8 13 6 15 6 3 1 9 16 2 1 Fast Attach 46 | 7 1 . 7 . . . 8 14 3 6 Attach 14 | . . . 2 1 . 1 2 7 . 1 Detach 1 | . . . . . . . . 1 . . Swap 76 | . 6 6 17 2 1 4 8 27 3 2 Drop 91 | . 13 7 20 1 4 . 20 21 4 1 Fire 429 | 8 65 4 74 21 . 20 62 113 26 36 Melee 97 | . . . . . 4 . . 35 15 43 Ram . | . . . . . . . . . . . Kick . | . . . . . . . . . . . Crush . | . . . . . . . . . . . Escape Stasis 32 | . . . . . . . . . . 32 Rewire . | . . . . . . . . . . . Trap . | . . . . . . . . . . . Miscellaneous 9 | . . . . . . . . 9 . . Route ------- -11/Scrapyard -10/Materials (discovered 5 exits: *Mat x3 / [*Min] / [Sub]) -10/Mines (discovered 2 exits: *Mat x2) -9/Materials (discovered 4 exits: *Mat x2 / [*Min] / [*Sto]) -9/Mines (discovered 3 exits: *Mat x2 / *Exi) -9/Exiles (discovered 2 exits: [*Min x2]) -8/Mines (discovered 2 exits: *Mat x2) -8/Materials (discovered 2 exits: *Fac / Gar) -8/Garrison (discovered 3 exits: *Mat x3) -8/Materials (discovered 2 exits: *Fac / Gar) -8/Garrison (discovered 2 exits: *Fac x2) History --------- Turn | Location | Event 30 | -11/Scrapyard | Discovered new exit (range 15) 113 | -11/Scrapyard | Entered Materials 205 | -10/Materials | Central database locked down 284 | -10/Materials | Discovered new exit (range 16) 309 | -10/Materials | Build established: Mutant 390 | -10/Materials | Discovered new exit (range 11) 712 | -10/Materials | Discovered new exit (range 6) 833 | -10/Materials | Discovered new exit (range 14) 915 | -10/Materials | Discovered new exit (range 16) 1002 | -10/Materials | Entered Mines 1027 | -10/Mines | Learned Materials trap positions 1038 | -10/Mines | Met a Derelict bent on vengeance 1044 | -10/Mines | Found a hidden stash of uninstalled traps 1152 | -10/Mines | Discovered new exit (range 10) 1279 | -10/Mines | Discovered new exit (range 16) 1389 | -10/Mines | Received a Rocket Launcher from a helpful Derelict 1433 | -10/Mines | Joined a pair of Derelicts in attacking an 0b10 outpost 1507 | -10/Mines | Assisted by bots powering up and referring to "LRC-V3" 1708 | -10/Mines | Entered Materials 1708 | -9/Materials | Accompanied by 3 allies 1708 | -9/Materials | Evolved 2 slots: Propulsion x1, Utility x1 1709 | -9/Materials | Loaded intel: 14 trap records 2257 | -9/Materials | Discovered new exit (range 5) 2442 | -9/Materials | Discovered new exit (range 8) 2510 | -9/Materials | Discovered new exit (range 6) 2638 | -9/Materials | Discovered new exit (range 9) 3308 | -9/Materials | First assault squad dispatched 3648 | -9/Materials | Entered Mines 3649 | -9/Mines | Learned location of Storage (-9) 3680 | -9/Mines | Discovered new exit (range 11) 3762 | -9/Mines | Deemed a non-threat by the Exiles lab entrance 3764 | -9/Mines | Discovered new exit (range 5) 3910 | -9/Mines | Discovered new exit (range 7) 3944 | -9/Mines | A weapon hastily lodged in a ceiling crevice suddenly fell to the ground 4099 | -9/Mines | Learned Materials security intel 4278 | -9/Mines | Assembled infested the area 5364 | -9/Mines | Entered Exiles 5398 | -9/Exiles | Discovered new exit (range 15) 5421 | -9/Exiles | Met 8R-AWN 5454 | -9/Exiles | Met EX-HEX 5566 | -9/Exiles | Met EX-DEC 5625 | -9/Exiles | Learned location of Zion (-7) 5667 | -9/Exiles | Met EX-BIN 5750 | -9/Exiles | Opened EX-Vault 5774 | -9/Exiles | Found Cloak of Protection 5788 | -9/Exiles | Found Superbattery 5796 | -9/Exiles | Found YOLO Cannon 5849 | -9/Exiles | Warned to stay clear of 0b10 Research branches 5996 | -9/Exiles | Discovered new exit (range 12) 6020 | -9/Exiles | Stole three prototypes: Superbattery, Cloak of Protection, YOLO Cannon 6020 | -9/Exiles | Entered Mines 6669 | -8/Mines | Discovered new exit (range 11) 6975 | -8/Mines | Discovered new exit (range 9) 7290 | -8/Mines | Entered Materials 7290 | -8/Materials | Evolved 2 slots: Propulsion x1, Utility x1 7479 | -8/Materials | Repaired Enh. Autogun 7618 | -8/Materials | Garrison activated, responded to threat 8078 | -8/Materials | Garrison activated, responded to threat 8143 | -8/Materials | Identified exit to Garrison 8695 | -8/Materials | Met 7R-MNS 8878 | -8/Materials | Discovered new exit (range 8) 9361 | -8/Materials | Repaired Hrd. Medium Armor Plating 9423 | -8/Materials | Repaired Enh. Autogun 10107 | -8/Materials | Entered Garrison 10360 | -8/Garrison | Installed Relay Interface Framework 10425 | -8/Garrison | Triggered checkpoint 10537 | -8/Garrison | Triggered checkpoint 10599 | -8/Garrison | Garrison Relay disabled 10649 | -8/Garrison | Discovered new exit (range 10) 10787 | -8/Garrison | Triggered checkpoint 11043 | -8/Garrison | Triggered checkpoint 11075 | -8/Garrison | Garrison Relay disabled 11131 | -8/Garrison | Discovered new exit (range 11) 11341 | -8/Garrison | Triggered checkpoint 11624 | -8/Garrison | Expanded RIF knowledge: Signal Jamming 11667 | -8/Garrison | Triggered checkpoint 11684 | -8/Garrison | Garrison Relay disabled 11771 | -8/Garrison | Discovered new exit (range 12) 11911 | -8/Garrison | Spotted B-75 Beast 11951 | -8/Garrison | Destroyed B-75 Beast 11976 | -8/Garrison | Lost 8 parts (3n3u2w) 12175 | -8/Garrison | Triggered checkpoint 12199 | -8/Garrison | Build established: Scavenger-Mutant 12378 | -8/Garrison | Identified exit to Materials 12379 | -8/Garrison | Entered Materials 12413 | -8/Materials | Core integrity fell below 50% 12586 | -8/Materials | Repaired Cmb. Airjet 12769 | -8/Materials | Discovered new exit (range 3) 12770 | -8/Materials | Identified exit to Factory 12791 | -8/Materials | Identified exit to Garrison 12791 | -8/Materials | Entered Garrison 12829 | -8/Garrison | Triggered checkpoint 12906 | -8/Garrison | Expanded RIF knowledge: Program Shield 12943 | -8/Garrison | Triggered checkpoint 12969 | -8/Garrison | Discovered exit to Factory (range 10) 13003 | -8/Garrison | Triggered checkpoint 13101 | -8/Garrison | Build established: Mutant 13113 | -8/Garrison | Core integrity fell below 20% 13173 | -8/Garrison | Triggered checkpoint 13203 | -8/Garrison | Discovered exit to Factory (range 3) 13303 | -8/Garrison | Triggered checkpoint 13425 | -8/Garrison | Destroyed by G-47 Trooper with Particle Gun Last Messages --------------- 13295_ S-10 Pest destroyed. 13303_ Beams of light sweep through the air. An alarm sounds. 13305_ System corrupted: Matter fused (-6). 13314_ Acquired Core Analyzer. 13321_ System corrupted: Heat flow error (+187). 13341_ Remote Datajack destroyed. 13348_ System corrupted: Component data lost. 13348_ G-47 Trooper destroyed. 13352_ G-47 Trooper suffers critical hit (Impale). 13352_ G-47 Trooper destroyed. 13356_ Cmb. Airjet destroyed. 13369_ Destroyed Imp. Heat Sink. 13369_ G-47 Trooper destroyed. 13389_ Acquired 6 matter. 13390_ Acquired Flight Unit. 13393_ Acquired 10 matter. 13414_ Critical hit (Burn: +37). 13416_ G|TDXQ7KLN%I=GLD6KARC Map ----- +----------------------------------------------------+ | ??????????????????????????????????# #??????????# | | ??????????????????????????????????# #??????????# | | ??????????????????##########??????# #?#####????# | | ?????????????????#""""""""""#?????# ##!!!!###### | | ?????????????????#"""!!!!"""#?????# + | | ???#####?????????#"" ""#?????# + | | ???? #?#####???#"! !"#?????# ##!!!!#+#### | | ???? #?? #???#"! !"#?????# #?#####????# | | ??### #??< #???#"! !"#?????# #??????????# | | ??# != #?? #???#"! !"#?????# #??????????# | | ??# *%=#??# #???#"! !"#?????# #????????### | | ??# !##??# #???#"! !"#?????# #????????# | | ??### #???# #???#"" =""#?????# #????????+ | | ????# #???# #???######;%%###?????# #????????? | | ????# ##### #????????##=["#??????# #??????????# | | ????# ###########;%"#??????# #??????????# | | ????# #####^ %"#??????# #??????????# | | ????# #???# % ##??????# #??????????# | | ????# #???#+##+###+#####= #???????# ############ | | ????# #????????????????# #???????# " | | ??### +????????????????# #???##### ####### #### | | ??#[%*#???????????????## #???# #?????# #??# | | ??# ! #???????????????#;!!#???# ### #?????# #??# | | ??# #???????????????## %#####"#?# #?????# #??# | | ??### #????????????????# !## #?# #?????# #??# | | ????# #???????????????##!@## ###+####### #### | | ????# #"#?????????????# !% | | ????# "#?????????????+ | | ????# "#?????????????# | | ????# "#?????????????# ## ## ###########T# | | ????# #"#???????????### ## *%g## #?????????### | | ????#####???????????#! = #?????????? | | ????????????????????# * #?????????? | | ????????????????????# #?????????? | | ????????????????????# #?????????? | | ????????????????????### # ## ###?????????? | | ????????############# # ^ ## #???????????? | | ????????# ??????????? | | ????????# ????????? | | ????????# ###+????????? | | ????????# #### #######+###""""###+##???????????? | | ????????# #??# #?????????????????????????????+?? | | ????????# #??# #??????????+????????????????????? | | ????????# #??# #???????????????????????????????? | | ????????# #??# #??????????????????????????+??+?? | | ?######## #### #???????????????????????????????? | | ?# ! = #???????????????????????????????? | | ?#[###### ####+#???????????????????????????????? | | ## ###??# #????????????????????????????????????? | | ##=! #??# #???????????????????????????+????????? | +----------------------------------------------------+ Best States ------------- Heat Dissipation 58 Energy Generation 16 Energy Capacity 290 Matter Stores 300 Matter Capacity 300 Sight Range 16 Robot Scan Range 15 Terrain Scan Range 16 Terrain Scan Density 10 Cloak Strength 5 Armor Coverage 225 Evasion (%) 52 Targeting Accuracy 8 Core Analysis 6 Recoil Reduction 4 Offensive Hacking 10 Relay Coupler Types 1 Relay Coupler Value 21 Authchip Count 1 Item Schematics ----------------- Hacking Suite | -9/Materials | Scanalyzed Enh. Autogun | -8/Materials | Scanalyzed Cmb. Airjet | -8/Materials | Scanalyzed Mak. Spear | -8/Materials | Scanalyzed Machine Analyzer | -8/Materials | Scanalyzed Huge Storage Unit | -8/Materials | Scanalyzed Robot Schematics ------------------ M-13 Machinist | -9/Materials | Hacked O-16 Technician | -9/Materials | Hacked Fabricated ------------ Nothing Alien Tech Used ----------------- None Achievements -------------- None Challenges ------------ None Game ------ Seed DeliveryCommTerrabomb Manual? 1 Play Time 01:42:08 Cumulative 447.9 hours Start 2024.07.08 @ 22:54:25 End 2024.07.09 @ 00:53:21 Sessions 1 Manual Loads 0 Difficulty Rogue Special Mode None Game No. 173 Rogue 170 Adventurer 3 Explorer 0 Win Type - Total 7 Types 4/1/0/1/0/1/0/0/0 Lore% 82 Gallery% 88 Achievement% 86 Wizard Run 0 Options --------- Layout 2 ASCII 0 Keyboard 0 Movement Numpad Keybinds 0 Fullscreen 2 Font 24/Smallcaps Map View 50x44 Zoom Use 0% Tactical HUD 1 Map Filters NONE Filters NONE Steam 1 RUN: 9e057745-ac70-48b7-b8b3-8d3c3fc1e91d